Workbook

Sheet Arkusz1
B2: B | E2: C
B3: I | C3: II | D3: III
A4: sumaW | B4: =B5+B6+B7+B8+B9+B10+B11 -> 2500 | C4: =C5+C6+C7+C8+C9+C10+C11 -> 12700 | D4: 12610 | E4: =E5+E6+E7+E8+E9+E10+E11 -> 2500 | F4: =F5+F6+F7+F8+F9+F10+F11 -> 2948 | G4: =G5+G6+G7+G8+G9+G10+G11 -> 22362 | H4: =SUM(B4:D4) -> 27810 | I4: =SUM(E4:G4) -> 27810
B5: 2000 | C5: 1380 | D5: 6478 | E5: 2000 | F5: 1380 | G5: 9752
B6: 500 | C6: 1568 | D6: 2584 | E6: 500 | F6: 1568 | G6: 6478
C7: 9752 | D7: 3548 | G7: 2584
G8: 3548
A12: suma U | B12: =B13+B14+B15+B16+B17 -> 0 | C12: =C13+C14+C15+C16+C17 -> 6730 | D12: 0 | E12: =E13+E14+E15+E16+E17 -> 1350 | F12: =F13+F14+F15+F16+F17 -> 5380 | G12: =G13+G14+G15+G16+G17 -> 0 | H12: =SUM(B12:D12) -> 6730 | I12: =SUM(E12:G12) -> 6730
C13: 1350 | E13: 1350 | F13: 5380
C14: 5380
A18: Suma B | B18: =B4*1.085+B12 -> 2712.5 | C18: =C4*1.085+C12 -> 20509.5 | D18: 13681.85 | E18: 4062.5 | F18: 8578.58 | G18: 24262.77 | H18: 36903.85 | I18: 36903.85
A19: km | B19: 235 | D19: 200 | E19: 235 | G19: 200
A20: kuo | C20: 254 | D20: 257 | F20: 254 | G20: 257
A21: kd | C21: 158 | D21: 148 | F21: 158 | G21: 148
A22: ik
A23: Suma C | B23: =SUM(B19:B22) -> 235 | C23: =SUM(C19:C22) -> 412 | D23: 605 | E23: 235 | F23: 412 | G23: 605 | H23: 1252 | I23: 1252
A24: Suma A | B24: =B18+B23 -> 2947.5 | C24: =C18+C23 -> 20921.5 | D24: 14286.85 | E24: 4297.5 | F24: 8990.58 | G24: 24867.77 | H24: 38155.85 | I24: 38155.85
A26: Komurka D | B26: =0.1964*B18+1.05*(0.12*(B23+0.1964*B18)+0.18*(B23+0.1964*B18)) -> 774.571525 | C26: =0.1964*C18+1.05*(0.12*(C23+0.1964*C18)+0.18*(C23+0.1964*C18)) -> 5426.686527 | D26: 3724.131672 | E26: 1123.230625 | F26: 2345.335542 | G26: 6456.823557 | H26: 9925.389724 | I26: 9925.389724
I27: 0
A28: E | B28: =B24+B26 -> 3722.071525 | C28: =C24+C26 -> 26348.18653 | D28: 18010.98167 | E28: 5420.730625 | F28: 11335.91554 | G28: 31324.59356 | H28: 48081.23972 | I28: 48081.23972

Sheet Arkusz1 (2)
B1: pola kture należy wypełnić
B2: pola kture zostaną obliczone automatycznie
A6: Wynagrodzenie osobowe pracowników tab 1 | G6: Honoraria (umowy zlecenie i o dzieło) tab2
A7: L.p | B7: Imię i nazwisko pracownika (lub funkcja prłniona w zespole projektowym | C7: liczba godzin pracy | D7: sawka za godzinę | E7: kwota wynagrodzenia | G7: L.p | H7: Imię i nazwisko pracownika (lub funkcja prłniona w zespole projektowym | I7: =C7 -> liczba godzin pracy | J7: =D7 -> sawka za godzinę | K7: =E7 -> kwota wynagrodzenia
A8: 1 | E8: =C8*D8 -> 0 | G8: =A8 -> 1 | K8: =I8*J8 -> 0
A9: 2 | E9: 0 | G9: 2 | K9: 0
A10: 3 | E10: 0 | G10: 3 | K10: 0
A11: 4 | E11: 0 | G11: 4 | K11: 0
A12: 5 | E12: 0 | G12: 5 | K12: 0
A13: 6 | E13: 0 | G13: 6 | K13: 0
A14: 7 | E14: 0 | G14: 7 | K14: 0
A15: 8 | E15: 0 | G15: 8 | K15: 0
A16: 9 | E16: 0 | G16: 9 | K16: 0
A17: 10 | E17: 0 | G17: 10 | K17: 0
A18: 11 | E18: 0 | G18: 11 | K18: 0
A19: 12 | E19: 0 | G19: 12 | K19: 0
A20: 13 | E20: 0 | G20: 13 | K20: 0
A21: 14 | E21: 0 | G21: 14 | K21: 0
A22: 15 | E22: 0 | G22: 15 | K22: 0
A23: 16 | E23: 0 | G23: 16 | K23: 0
A24: 17 | E24: 0 | G24: 17 | K24: 0
A25: 18 | E25: 0 | G25: 18 | K25: 0
A26: 19 | E26: 0 | G26: 19 | K26: 0
A27: 20 | E27: 0 | G27: 20 | K27: 0
A28: 21 | E28: 0 | G28: 21 | K28: 0
A29: 22 | E29: 0 | G29: 22 | K29: 0
A30: 23 | E30: 0 | G30: 23 | K30: 0
A31: 24 | E31: 0 | G31: 24 | K31: 0
A32: 25 | E32: 0 | G32: 25 | K32: 0
A33: 26 | E33: 0 | G33: 26 | K33: 0
A34: 27 | E34: 0 | G34: 27 | K34: 0
A35: 28 | E35: 0 | G35: 28 | K35: 0
A36: 29 | E36: 0 | G36: 29 | K36: 0
A37: 30 | E37: 0 | G37: 30 | K37: 0
A38: 31 | E38: 0 | G38: 31 | K38: 0
A39: 32 | E39: 0 | G39: 32 | K39: 0
A40: 33 | E40: 0 | G40: 33 | K40: 0
A41: 34 | E41: 0 | G41: 34 | K41: 0 | N41: B | Q41: C
B42: Razem | C42: =SUM(C8:C41) -> 0 | D42: =SUM(D8:D41) -> 0 | E42: =SUM(E8:E41) -> 0 | H42: Razem | I42: =SUM(I8:I41) -> 0 | J42: =SUM(J8:J41) -> 0 | K42: =SUM(K8:K41) -> 0 | N42: I | O42: II | P42: III
M43: sumaW | N43: =N44+N45+N46+N47+N48+N49+N50 -> 2500 | O43: =O44+O45+O46+O47+O48+O49+O50 -> 12700 | P43: 12610 | Q43: 2500 | R43: 2948 | S43: 22362 | T43: =SUM(N43:P43) -> 27810 | U43: =SUM(Q43:S43) -> 27810
N44: 2000 | O44: 1380 | P44: 6478 | Q44: 2000 | R44: 1380 | S44: 9752
N45: 500 | O45: 1568 | P45: 2584 | Q45: 500 | R45: 1568 | S45: 6478
O46: 9752 | P46: 3548 | S46: 2584
S47: 3548
A48: Kalkulacja Kosztów Projektu | K48: =SUM(N43:P43) -> 27810
A49: L.p | B49: Opis | D49: współczynik | E49: Koszty
A50: 1 | B50: Wynagrodzenia osobowe | E50: 27810
A51: 2 | B51: honoraria (umowy zlec. I o dzieło) | E51: 6730 | M51: suma U | N51: =N52+N53+N54+N55+N56 -> 0 | O51: =O52+O53+O54+O55+O56 -> 6730 | P51: 0 | Q51: 1350 | R51: 5380 | S51: 0 | T51: =SUM(N51:P51) -> 6730 | U51: =SUM(Q51:S51) -> 6730
A52: 3 | B52: dodatk. Wynagrodzenie roczne (np.13 pencja) (od poz.1) | D52: 0.085 | E52: =$E$50*$D$52 -> 2363.85 | O52: 1350 | Q52: 1350 | R52: 5380
A53: 4 | B53: razem: (poz. 1-3) | E53: =SUM($E$50:$E$52) -> 36903.85 | O53: 5380
A54: 5 | B54: Wartość składek ZUS (od poz. 4) | D54: 0.1964 | E54: =$D$54*$E$53 -> 7247.91614
A55: 6 | B55: koszty delegacji | E55: =N58+P58 -> 435
A56: 7 | B56: koszty usług obcych | E56: =O59+P59 -> 511
A57: 8 | B57: materiały | E57: =O60+P60 -> 306 | M57: Suma B | N57: =N43*1.085+N51 -> 2712.5 | O57: =O43*1.085+O51 -> 20509.5 | P57: =P43*1.085+P51 -> 13681.85 | Q57: 4062.5 | R57: 8578.58 | S57: =S43*1.085+S51 -> 24262.77 | T57: 36903.85 | U57: 36903.85
A58: 9 | B58: inne koszty (np. promocja) | M58: km | N58: 235 | P58: 200 | Q58: 235 | S58: 200
A59: 10 | B59: razem (poz. 5-9 | E59: =SUM($E$54:$E$58) -> 8499.91614 | M59: kuo | O59: 254 | P59: 257 | R59: 254 | S59: 257
A60: 11 | B60: Koszty wydziałowe (od poz. 10) | D60: 0.18 | E60: =$D$60*$E$59 -> 1529.984905 | M60: kd | O60: 158 | P60: 148 | R60: 158 | S60: 148
A61: 12 | B61: koszty ogulne (od poz. 10) | D61: 0.12 | E61: =$D$61*$E$59 -> 1019.989937 | M61: ik
A62: 13 | B62: Razem (poz. 11-12) | E62: =SUM($E$60:$E$61) -> 2549.974842 | M62: Suma C | N62: =SUM(N58:N61) -> 235 | O62: =SUM(O58:O61) -> 412 | P62: 605 | Q62: 235 | R62: 412 | S62: 605 | T62: 1252 | U62: 1252
A63: 14 | B63: zysk min. (od poz. 13) | D63: 0.05 | E63: =$E$62*$D$63 -> 127.4987421 | M63: Suma A | N63: =N57+N62 -> 2947.5 | O63: =O57+O62 -> 20921.5 | P63: 14286.85 | Q63: 4297.5 | R63: 8990.58 | S63: 24867.77 | T63: 38155.85 | U63: 38155.85
A64: 15 | B64: ogółem (poz. 13-14) | E64: =SUM($E$62:$E$63) -> 2677.473584
M65: Komurka D | N65: =0.1964*N57+0.12*(N62+0.1964*N57)+0.18*(N62+0.1964*N57)+0.05*(0.12*(N62+0.1964*N57)+0.18*(N62+0.1964*N57)) -> 774.571525 | O65: =0.1964*O57+0.12*(O62+0.1964*O57)+0.18*(O62+0.1964*O57)+0.05*(0.12*(O62+0.1964*O57)+0.18*(O62+0.1964*O57)) -> 5426.686527 | P65: 3724.131672 | Q65: 1123.230625 | R65: 2345.335542 | S65: 6456.823557 | T65: 9925.389724 | U65: 9925.389724
B66: Koszt realizacji projektu | D66: =E53+E59+E64 -> 48081.23972 | U66: 0
M67: E | N67: =N63+N65 -> 3722.071525 | O67: =O63+O65 -> 26348.18653 | P67: 18010.98167 | Q67: 5420.730625 | R67: 11335.91554 | S67: 31324.59356 | T67: =SUM(N67:P67) -> 48081.23972 | U67: =SUM(Q67:S67) -> 48081.23972
